Cogmind - Beta 17 @@@ ROGUE MODE // 2026.08.15 @ 13:56:56 // Winter2022/Polymind Player: GogoFox Result: Destroyed by H-61 Shepherd with Heavy Assault Cannon Performance ------------- Evolutions (4) 2000 Regions Visited (7) 1400 Robots Destroyed (0) 0 Value Destroyed (0) 0 Prototype IDs (0) 0 Alien Tech Used (0) 0 Bonus (4836) 4836 TOTAL SCORE: 8036 Bonus ------- Polymind Skill 3011 Pacifist 1325 Entered DSFs 500 Cogmind --------- Core Integrity 0/850 Matter 0/0 Energy 10/100 System Corruption 0% Temperature Cool (0) Movement Core (50) Location -6/Factory Parts ------- > --- POWER (1) -------- (None) > --- PROPULSION (2) --- (None) > --- UTILITY (0) ------ (None) > --- WEAPON (1) ------- (None) > --- INVENTORY (0) ---- (None) Peak State ------------ > --- POWER ------------ Improved Ion Engine > --- PROPULSION ------- Medium Treads Medium Treads > --- UTILITY ---------- Large Storage Unit Advanced Weight Redist. System Transport Network Coupler > --- WEAPON ----------- (None) > --- INVENTORY -------- Improved Field Recycling Unit Improved Field Recycling Unit Improved Field Recycling Unit Improved Field Recycling Unit Improved Field Recycling Unit Improved Field Recycling Unit Improved Field Recycling Unit Improved Field Recycling Unit [Rating: 18] Favorites ----------- Power Light Ion Engine Engine Light Ion Engine Power Core Light Nuclear Core Propulsion Wheel Treads Medium Treads Wheel Wheel Hover Unit Hover Unit Flight Unit VTOL Module Utility Small Matter Pod Device Advanced Weight Redist. System Storage Small Matter Pod Processor Visual Processing Unit Weapon Mining Laser Ballistic Gun Autogun Special Weapon Mining Laser Build | -11 -10 -10 -9 -8 -7 -7 -6 ------- Run | Yrd Mat Min Mat Mat Fac DSF Fac Slots Evolved . | . . . . . . . . Power . | . . . . . . . . Propulsion . | . . . . . . . . Utility . | . . . . . . . . Weapon . | . . . . . . . . Parts Attached . | . . . . . . . . Power . | . . . . . . . . Engine . | . . . . . . . . Core . | . . . . . . . . Reactor . | . . . . . . . . Propulsion . | . . . . . . . . Treads . | . . . . . . . . Leg . | . . . . . . . . Wheel . | . . . . . . . . Hover . | . . . . . . . . Flight . | . . . . . . . . Utility . | . . . . . . . . Device . | . . . . . . . . Storage . | . . . . . . . . Processor . | . . . . . . . . Hackware . | . . . . . . . . Protection . | . . . . . . . . Artifact . | . . . . . . . . Weapon . | . . . . . . . . Energy Gun . | . . . . . . . . Energy Cannon . | . . . . . . . . Ballistic Gun . | . . . . . . . . Ballistic Cannon . | . . . . . . . . Launcher . | . . . . . . . . Special Weapon . | . . . . . . . . Impact Weapon . | . . . . . . . . Slashing Weapon . | . . . . . . . . Piercing Weapon . | . . . . . . . . Special Melee Weapon . | . . . . . . . . Unidentified Prototypes . | . . . . . . . . Parts Lost 6 | . . . . . . . 6 Power 1 | . . . . . . . 1 Propulsion 3 | . . . . . . . 3 Utility . | . . . . . . . . Weapon 2 | . . . . . . . 2 Highest Loss Streak 4 | . . . . . . . 4 To Critical Strikes . | . . . . . . . . Average Backups . | . . . . . . . . Power . | . . . . . . . . Propulsion . | . . . . . . . . Utility . | . . . . . . . . Weapon . | . . . . . . . . Tool/Special . | . . . . . . . . Unused Backups 8 | . . . . . . . 8 Power . | . . . . . . . . Propulsion . | . . . . . . . . Utility 8 | . . . . . . . 8 Weapon . | . . . . . . . . Tool/Special . | . . . . . . . . Average Slot Usage (%) 73 | . 76 80 85 92 80 80 54 Engine 17 | . 14 20 21 23 20 20 12 Treads 1 | . . . . . . . 3 Wheel 30 | . 29 40 29 15 40 40 19 Hover 3 | . . . 13 31 . . . Device 1 | . 16 . . . . . 1 Storage 15 | . 6 20 14 7 20 20 12 Processor 2 | . . . 6 15 . . 1 Peak Build Rating 18 | 8 8 4 5 5 4 4 18 Average Rating 4 | 4 5 4 4 4 4 4 4 On Entrance 4 | . 8 4 4 5 4 4 4 Avg Prop Armor Cover (%) . | . . . . . . . . Naked Turns 114 | . 2 . 1 6 . . 105 Heaviest Build 27 | 6 6 4 4 4 4 4 27 Greatest Support 65 | 20 20 20 20 20 20 20 65 Greatest Overweight (x) 1 | . . . . . . . 1 Average Overweight (x) . | . . . . . . . . Largest Inventory Capacity 10 | . 1 1 1 1 1 1 10 Average Capacity 1 | . . 1 . . 1 1 1 Most Carried 8 | . . . . . . . 8 Average Carried . | . . . . . . . 1 Final Capacity 1 | . 1 1 . 1 1 1 . Final Carried . | . . . . . . . . Class Distribution -------------------- 74% | Worker 9% | Cogmind 6% | Watcher 4% | Hauler Dominant Class ---------------- Tunneler | -10/Materials Worker | -10/Mines Worker | -9/Materials Watcher | -8/Materials Worker | -7/Factory Worker | -7/DSF Worker | -6/Factory Resources | -11 -10 -10 -9 -8 -7 -7 -6 ----------- Run | Yrd Mat Min Mat Mat Fac DSF Fac Matter Collected 46 | . . 43 . . . . 3 Remotely . | . . . . . . . . Salvage Created . | . . . . . . . . Parts . | . . . . . . . . Haulers Intercepted . | . . . . . . . . Recyclers Shooed . | . . . . . . . . Parts Field Recycled . | . . . . . . . . Retrieved Matter . | . . . . . . . . Parts Self-Destructed . | . . . . . . . . Prevented . | . . . . . . . . Parts Restored . | . . . . . . . . Kills | -11 -10 -10 -9 -8 -7 -7 -6 ------- Run | Yrd Mat Min Mat Mat Fac DSF Fac Combat Hostiles Destroyed . | . . . . . . . . Classes Destroyed . | . . . . . . . . Best Kill Streak . | . . . . . . . . Combat Bots Only . | . . . . . . . . Max Kills in Single Turn . | . . . . . . . . Gunslinging . | . . . . . . . . Exploded . | . . . . . . . . Melee . | . . . . . . . . Uniques/NPCs Destroyed . | . . . . . . . . Combat | -11 -10 -10 -9 -8 -7 -7 -6 -------- Run | Yrd Mat Min Mat Mat Fac DSF Fac Hostile Shots Fired 112 | . . . . . . . 112 Missed 41 | . . . . . . . 41 Hits 71 | . . . . . . . 71 Projectile 71 | . . . . . . . 71 Critical Strikes 2 | . . . . . . . 2 Damage Taken 1311 | . . . . . . . 1311 Core 850 | . . . . . . . 850 Absorbed by Shields . | . . . . . . . . Core Remaining (%) 100 | 100 . 100 100 100 . 100 . Volleys Fired . | . . . . . . . . Largest . | . . . . . . . . Hottest . | . . . . . . . . Shots Fired . | . . . . . . . . Gun . | . . . . . . . . Cannon . | . . . . . . . . Launcher . | . . . . . . . . Special . | . . . . . . . . Kinetic . | . . . . . . . . Thermal . | . . . . . . . . Explosive . | . . . . . . . . Electromagnetic . | . . . . . . . . Robot Hit Streak . | . . . . . . . . Robot Miss Streak . | . . . . . . . . Penetration Max . | . . . . . . . . Secondary Targets . | . . . . . . . . Shots Hit Robots . | . . . . . . . . Core Hits . | . . . . . . . . Critical Kills . | . . . . . . . . Critical Parts Destroyed . | . . . . . . . . Critical Strikes . | . . . . . . . . Melee Attacks . | . . . . . . . . Impact . | . . . . . . . . Slashing . | . . . . . . . . Piercing . | . . . . . . . . Sneak Attacks . | . . . . . . . . Combat Hostiles . | . . . . . . . . Follow-up Attacks . | . . . . . . . . Damage Inflicted 18 | . . . . . . . 18 Guns . | . . . . . . . . Cannons . | . . . . . . . . Explosions . | . . . . . . . . Melee . | . . . . . . . . Ramming 18 | . . . . . . . 18 Kinetic . | . . . . . . . . Thermal . | . . . . . . . . Explosive . | . . . . . . . . Electromagnetic . | . . . . . . . . Impact . | . . . . . . . . Slashing . | . . . . . . . . Piercing . | . . . . . . . . Highest Corruption . | . . . . . . . . Average Corruption . | . . . . . . . . Corruption Purged . | . . . . . . . . Corruption Blocked . | . . . . . . . . Overload Shots . | . . . . . . . . Overflow Damage . | . . . . . . . . Projectiles . | . . . . . . . . Explosions . | . . . . . . . . Melee . | . . . . . . . . Knockbacks . | . . . . . . . . Impact . | . . . . . . . . Kinetic . | . . . . . . . . Secondary . | . . . . . . . . Self-Inflicted Damage 9 | . . . . . . . 9 Shots . | . . . . . . . . Rammed 4 | . . . . . . . 4 Targets Rammed 4 | . . . . . . . 4 Kicked . | . . . . . . . . Crushed . | . . . . . . . . Highest Temperature 13 | . . . . . . . 13 Average Temperature 9 | . . . . . . . 9 Received Heat Transfer 132 | . . . . . . . 132 Siege Activations . | . . . . . . . . Martial Activations . | . . . . . . . . Shielding Activations . | . . . . . . . . Robots Disrupted . | . . . . . . . . Combat Hostiles . | . . . . . . . . Robots Corrupted . | . . . . . . . . Combat Hostiles . | . . . . . . . . Parts Fried . | . . . . . . . . Impact Corruptions . | . . . . . . . . Robots Melted . | . . . . . . . . Combat Hostiles . | . . . . . . . . Parts Melted . | . . . . . . . . Heat Transferred . | . . . . . . . . Parts Sabotaged . | . . . . . . . . Parts Stolen . | . . . . . . . . Parts Stripped . | . . . . . . . . Power Chain Reactions . | . . . . . . . . Alert | -11 -10 -10 -9 -8 -7 -7 -6 ------- Run | Yrd Mat Min Mat Mat Fac DSF Fac Maximum Alert Level . | . . . . . . . . Low Security (%) 100 | 100 100 100 100 100 100 100 100 Level 1 . | . . . . . . . . Level 2 . | . . . . . . . . Level 3 . | . . . . . . . . Level 4 . | . . . . . . . . Level 5 . | . . . . . . . . High Security . | . . . . . . . . Max Security . | . . . . . . . . Peak Influence 75 | . . . . 15 . . 75 Initial . | . . . . . . . . Average 4 | . . . . 3 . . 12 Influence Increases 126 | . . . . 15 . . 111 Successful Hack 21 | . . . . . . . 21 Partial Spotted 15 | . . . . 15 . . . Lose Combat Pursuer 90 | . . . . . . . 90 Influence Decreases 126 | . . . . 15 . . 111 Time Decay 80 | . . . . 15 . . 65 Lost Part 45 | . . . . . . . 45 Miscellaneous 1 | . . . . . . . 1 Squads Dispatched 4 | . . . . . 1 . 3 Investigation . | . . . . . . . . Extermination 2 | . . . . . 1 . 1 Reinforcement 2 | . . . . . . . 2 Assault . | . . . . . . . . Garrison . | . . . . . . . . Intercept . | . . . . . . . . Searches Triggered . | . . . . . . . . Construction Impeded . | . . . . . . . . Haulers Reinforced . | . . . . . . . . Active Scanning Responses . | . . . . . . . . Cargo Convoy Interrupts . | . . . . . . . . Stealth | -11 -10 -10 -9 -8 -7 -7 -6 --------- Run | Yrd Mat Min Mat Mat Fac DSF Fac Distress Signals 3 | . . . 1 . . . 2 Communications Jammed . | . . . . . . . . Distress Signals . | . . . . . . . . Times Spotted 37 | . . . 1 6 . . 30 Peak Tracking Total 9 | . . . 3 3 . . 9 Tactical Retreats 2 | . . . . . . . 2 Traps | -11 -10 -10 -9 -8 -7 -7 -6 ------- Run | Yrd Mat Min Mat Mat Fac DSF Fac Traps Triggered . | . . . . . . . . Indirectly . | . . . . . . . . Trap Hack Attempts . | . . . . . . . . Triggered . | . . . . . . . . Disarmed . | . . . . . . . . Reprogrammed . | . . . . . . . . Reused . | . . . . . . . . Traps Extracted . | . . . . . . . . Installed . | . . . . . . . . Triggered . | . . . . . . . . Machines | -11 -10 -10 -9 -8 -7 -7 -6 ---------- Run | Yrd Mat Min Mat Mat Fac DSF Fac Machines Disabled . | . . . . . . . . Max in Single Turn . | . . . . . . . . Garrison Access 2 | . . . . . 2 . . Machines Repaired . | . . . . . . . . Machines Dismantled . | . . . . . . . . Machines Sabotaged . | . . . . . . . . Overloaded Fab Kills . | . . . . . . . . Hacking | -11 -10 -10 -9 -8 -7 -7 -6 --------- Run | Yrd Mat Min Mat Mat Fac DSF Fac Machines Accessed 15 | . 1 . 2 1 7 . 4 Terminals 9 | . . . 1 . 4 . 4 Fabricators . | . . . . . . . . Repair Stations . | . . . . . . . . Recycling Units 4 | . 1 . 1 1 1 . . Scanalyzers . | . . . . . . . . Garrison Access 2 | . . . . . 2 . . Total Hacks 23 | . 1 . 3 1 13 . 5 Successful 9 | . 1 . 1 1 4 . 2 Failed 14 | . . . 2 . 9 . 3 Catastrophic 5 | . . . 1 . 2 . 2 Database Lockouts . | . . . . . . . . Manual 12 | . 1 . 3 1 7 . . Terminals 15 | . . . 2 . 8 . 5 Fabricators . | . . . . . . . . Repair Stations . | . . . . . . . . Recycling Units 4 | . 1 . 1 1 1 . . Scanalyzers . | . . . . . . . . Garrison Access 4 | . . . . . 4 . . Terminal Hacks 4 | . . . . . 2 . 2 Record 1 | . . . . . 1 . . Open DSF 2 | . . . . . 1 . 1 Branch Access Points 1 | . . . . . . . 1 Fabricator Hacks . | . . . . . . . . Repair Station Hacks . | . . . . . . . . Recycling Unit Hacks . | . . . . . . . . Scanalyzer . | . . . . . . . . Garrison Access Hacks 2 | . . . . . 2 . . Seal Access 2 | . . . . . 2 . . Unauthorized Hacks 3 | . 1 . 1 1 . . . Terminals . | . . . . . . . . Fabricators . | . . . . . . . . Repair Stations . | . . . . . . . . Recycling Units 3 | . 1 . 1 1 . . . Recyclers 3 | . 1 . 1 1 . . . Scanalyzers . | . . . . . . . . Garrison Access . | . . . . . . . . Data Cores Recovered . | . . . . . . . . Used . | . . . . . . . . Hacking Detections 8 | . . . 1 . 4 . 3 Full Trace Events . | . . . . . . . . Feedback Events . | . . . . . . . . Feedback Blocked . | . . . . . . . . Robot Schematics Acquired . | . . . . . . . . Robots Built . | . . . . . . . . Authchips . | . . . . . . . . Time . | . . . . . . . . Total Robot Build Rating . | . . . . . . . . Part Schematics Acquired . | . . . . . . . . Parts Built . | . . . . . . . . Authchips . | . . . . . . . . Time . | . . . . . . . . Total Part Build Rating . | . . . . . . . . Part Studies Acquired . | . . . . . . . . Parts Repaired . | . . . . . . . . Time . | . . . . . . . . Parts Recycled . | . . . . . . . . Recycled Matter . | . . . . . . . . Retrieved Matter . | . . . . . . . . Retrieved Components . | . . . . . . . . Parts Scanalyzed . | . . . . . . . . Part Schematics Acquired . | . . . . . . . . Parts Damaged . | . . . . . . . . Bothacking | -11 -10 -10 -9 -8 -7 -7 -6 ------------ Run | Yrd Mat Min Mat Mat Fac DSF Fac Used RIF Installer . | . . . . . . . . Robots Hacked 4 | . . . 1 . . . 3 Non-combat 3 | . . . 1 . . . 2 Combat 1 | . . . . . . . 1 Robot Hacks Applied 8 | . . . 2 . . . 6 map_walls 1 | . . . . . . . 1 find_fabricator 1 | . . . . . . . 1 find_dsf 1 | . . . . . . . 1 locate_stockpiles 1 | . . . . . . . 1 map_route 1 | . . . 1 . . . . mark_security 1 | . . . 1 . . . . find_shortcuts 1 | . . . . . . . 1 find_garrison 1 | . . . . . . . 1 Relay Couplers Released . | . . . . . . . . Fabnet Peak Effective % . | . . . . . . . . Robots Rewired . | . . . . . . . . Allies Hacked . | . . . . . . . . Hacks Repelled . | . . . . . . . . Allies | -11 -10 -10 -9 -8 -7 -7 -6 -------- Run | Yrd Mat Min Mat Mat Fac DSF Fac Total Allies . | . . . . . . . . Largest Group . | . . . . . . . . Highest-Rated Group . | . . . . . . . . Highest-Rated Ally . | . . . . . . . . Total Orders . | . . . . . . . . Ally Attacks . | . . . . . . . . Total Damage . | . . . . . . . . Kills . | . . . . . . . . Allies Corrupted . | . . . . . . . . Allies Melted . | . . . . . . . . Intel | -11 -10 -10 -9 -8 -7 -7 -6 ------- Run | Yrd Mat Min Mat Mat Fac DSF Fac Active Infowar (turns) 162 | 11 30 . 30 40 . . 51 Optics 70 | . . . 30 40 . . . Terrain 44 | 11 30 . . . . . 3 Structural 3 | . . . . . . . 3 Seismic 41 | 11 30 . . . . . . T.N.C. 48 | . . . . . . . 48 Robot Analysis Total 6 | 1 1 . 1 . . . 3 Derelict Logs Recovered 1 | . . 1 . . . . . Drone Launches . | . . . . . . . . Drone Recoveries . | . . . . . . . . Exploration | -11 -10 -10 -9 -8 -7 -7 -6 ------------- Run | Yrd Mat Min Mat Mat Fac DSF Fac Turns Passed 1175 | 18 57 158 99 73 380 24 366 Spaces Moved 1550 | 23 70 195 140 115 475 30 502 Core 263 | 14 2 . 1 11 . . 235 Treads 30 | . . . . . . . 30 Legs . | . . . . . . . . Wheels 1124 | 9 68 195 84 34 475 30 229 Hover 125 | . . . 55 70 . . . Flight 8 | . . . . . . . 8 Fastest Speed 32 | 50 50 80 50 50 80 80 32 Average Speed 74 | 61 79 80 70 62 80 80 70 Slowest Speed 160 | 80 80 80 80 80 80 80 160 Overloaded Moves . | . . . . . . . . Propulsion Burnouts . | . . . . . . . . Robots Hopped . | . . . . . . . . Potential Cave-ins . | . . . . . . . . Cave-ins Triggered . | . . . . . . . . Exploration Rate (%) 25 | 3 23 66 21 19 16 39 20 Regions Visited 7 Branch Regions 1 Pre-discovered Areas . | . . . . . . . . Known Exits Taken 1 | . . . . . 1 . . Unknown Exits Taken 5 | 1 1 1 1 1 . . . Scrap Searched 1 | . . 1 . . . . . Spaces Dug . | . . . . . . . . Terrain Destroyed . | . . . . . . . . Melee . | . . . . . . . . Projectile . | . . . . . . . . AOE . | . . . . . . . . Terrain Rammed . | . . . . . . . . Walls Destroyed . | . . . . . . . . Machines Disabled . | . . . . . . . . Actions | -11 -10 -10 -9 -8 -7 -7 -6 --------- Run | Yrd Mat Min Mat Mat Fac DSF Fac Total 1565 | 26 71 196 140 115 474 29 514 Wait 11 | . 1 2 . . . . 8 Move 1543 | 22 69 194 139 114 474 29 502 Hop . | . . . . . . . . Pick Up . | . . . . . . . . Fast Attach . | . . . . . . . . Attach . | . . . . . . . . Detach . | . . . . . . . . Swap . | . . . . . . . . Drop . | . . . . . . . . Fire . | . . . . . . . . Melee . | . . . . . . . . Ram 4 | . . . . . . . 4 Kick . | . . . . . . . . Crush . | . . . . . . . . Escape Stasis . | . . . . . . . . Rewire 3 | . 1 . 1 1 . . . Trap . | . . . . . . . . Miscellaneous 4 | 4 . . . . . . . Route ------- -11/Scrapyard -10/Materials -10/Mines -9/Materials -8/Materials -7/Factory (discovered 2 exits: Sto / DSF) -7/DSF -6/Factory (discovered 2 exits: Low x2) History --------- Turn | Location | Event 4 | -11/Scrapyard | Discovered new exit (range 15) 19 | -11/Scrapyard | Entered Materials 66 | -10/Materials | Discovered new exit (range 14) 76 | -10/Materials | Entered Mines 223 | -10/Mines | Discovered new exit (range 13) 230 | -10/Mines | Received a Rocket Launcher from a helpful Derelict 234 | -10/Mines | Entered Materials 325 | -9/Materials | Discovered new exit (range 14) 333 | -9/Materials | Entered another Materials area 402 | -8/Materials | Discovered new exit (range 4) 406 | -8/Materials | Entered Factory 407 | -7/Factory | Identified exit to Storage 785 | -7/Factory | Identified exit to DSF 786 | -7/Factory | Entered DSF 799 | -7/DSF | Discovered new exit (range 13) 810 | -7/DSF | Entered Factory 955 | -6/Factory | Identified exit to Lower Caves 972 | -6/Factory | Spotted B-75 Beast 1063 | -6/Factory | Core integrity fell below 50% 1146 | -6/Factory | Core integrity fell below 20% 1176 | -6/Factory | Destroyed by H-61 Shepherd with Heavy Assault Cannon Last Messages --------------- SECURING TERMINAL." ALERT: Hostiles spotted, dispatching reinforcements to Terminal F003. W-25 Informer sends out distress signal. Penetrated by Slug. Released control of A-15 Conveyor. Penetrated by Slug. A-15 Conveyor reactivates. Penetrated by Slug. Slammed into S-27 Virus. Took control of S-27 Virus. Extracted analysis data for S-27 Virus. S-27 Virus destroyed. Penetrated by Slug. VTOL Module destroyed. Penetrated by Slug. VTOL Module destroyed. Lgt. Nuclear Core destroyed. Autogun destroyed. Lost control of S-27 Virus. Map ----- +----------------------------------------------------+ | ?????????????????????????????????????????????????? | | ?????????????????????????????????????????????????? | | ?????????????????????????????????????????????????? | | ?????????????????????????????????????????????????? | | ?????????????????????????????????????????????????? | | ?????????????????????????????????????????????????? | | ?????????????????????????????????????????????????? | | ?????????????????????????????????????????????????? | | ?????????????????????????????????????????????????? | | ?????????????????????????????????????????????????? | | ??????????????????????? ?????????????????????? | | ??????????????????????# ???????????????????? | | ??????????????????????# #??????????????????? | | ??????????????????????# #??????????????????? | | ??????????????????????# #??????????????????? | | ??????????????????????# #??????????????????? | | ??????????????????????# #??????????????????? | | ??????????????????????# #??????????????????? | | ??????????????????????+ #??????????????????? | | ??????????????????????# #??????????????????? | | ??????????????????????# #??????????????????? | | ??????????????????????# #??????????????????? | | ?????????????????????## ##?????????????????? | | ?????????????????????# #?????????????????? | | ?????????????????????# ! #########?????????? | | ?????????????????????# % @ ????????? | | ?????????????????????# ????????? | | ?????????????????????+ ????????? | | ?????????????????????# % k ????????? | | ??????????????????!??# H ????????? | | ?????????????????????# #########?????????? | | ?????????????????????# !#?????????????????? | | ?????????????????????### ###?????????????????? | | ?????????# ############# k #???????????????????? | | ?????????# #???????????????????? | | ?????????? u#???????????????????? | | ?????????? """ #???????????????????? | | ?????????? G" / #???????????????????? | | ?????????? """ #???????????????????? | | ??????????#### ##???????????????????? | | ??????????#"""!]] """ #????????????????????? | | ??????????#"R !] """ #????????????????????? | | ??????????#"""!] """ #???##############???? | | ??????????# "" #???# #???? | | ?????????????# ######???# #???? | | ?????????????# ! #????????# #?### | | ?????????????#### #????????# #?# | | ????????????????# #????????# #?? | | ????????????????# #????????# #?? | | ??????????????###+###+########??# #??? | +----------------------------------------------------+ Best States ------------- Heat Dissipation 25 Energy Generation 19 Energy Capacity 190 Matter Stores 100 Matter Capacity 100 Sight Range 18 Terrain Scan Range 16 Terrain Scan Density 10 Additional Mass Support 9 Evasion (%) 53 Recoil Reduction 2 Item Schematics ----------------- None Robot Schematics ------------------ None Fabricated ------------ Nothing Repaired ---------- Nothing Studied --------- None Alien Tech Used ----------------- None Achievements -------------- None Challenges ------------ None Polymind | -11 -10 -10 -9 -8 -7 -7 -6 ---------- Run | Yrd Mat Min Mat Mat Fac DSF Fac Hosts 7 | 1 1 . 1 1 . . 3 Combat Hostiles 1 | . . . . . . . 1 Allies . | . . . . . . . . Unique Host Classes 6 | 1 1 . 1 . . . 3 Average Host Suspicion 36 | . 8 3 30 68 25 11 74 Unsuspicious Activity 371 | 22 11 111 45 12 120 6 44 Returns to Shadow . | . . . . . . . . Fuzzy Dispatches 2 | . . . . . 1 . 1 Protomatter Created . | . . . . . . . . Used 51 | 5 5 . 12 5 . . 24 Decayed . | . . . . . . . . Highest Spend 14 | 5 5 . 12 5 . . 14 Game ------ Seed SegregatorCoolingNeutralizer Manual? 0 Play Time 00:20:18 Cumulative 10.7 hours Start 2026.08.15 @ 13:34:39 End 2026.08.15 @ 13:56:56 Sessions 1 Manual Loads 0 Difficulty Rogue Special Mode Winter2022/Polymind Game No. 8 Rogue 8 Adventurer 0 Explorer 0 Win Type - Total 0 Types 0/0/0/0/0/0/0/0/0/0 Lore% 21 Gallery% 11 Achievement% 14 Wizard Run 0 Options --------- Layout 2 ASCII 0 Keyboard 1 Movement Numpad Keybinds 0 Fullscreen 2 Font 16/Terminus Map View 50x49 Zoom Use 0% Tactical HUD 0 Map Filters NONE Filters NONE Steam SD RUN: e905b499-631b-440b-b7e5-27c8349f85a1